fUST/lending_fUST_20240411
["ID","MTS","AMOUNT","RATE_DAILY","PERIOD"]
[322123259,1712815844297,-636.78774934,0.00027498,2]
[322123260,1712815844307,-155.47835246,0.00027498,2]
[322123261,1712815844317,-237.33112891,0.00027498,2]
[322123262,1712815844326,-155.43645785,0.00027498,2]
[322123263,1712815844335,-23891.20241617,0.000275,2]
[322123264,1712815844348,-554.54677478,0.000275,2]
[322123306,1712816859672,200.0,0.0002169,2]
[322123307,1712816898772,155.43220328,0.0002169,2]
[322123308,1712816901147,156.60296207,0.00021557,2]
[322123309,1712816920390,2267.2288141,0.00021684,2]
[322123310,1712816922313,1181.650383,0.00021684,2]
[322123311,1712816967474,-154.92253873,0.00022668,2]
[322123312,1712816967495,-1128.33274262,0.00022668,2]
[322123313,1712816967517,-563.04815704,0.00022668,2]
[322123314,1712816967540,-528.33119451,0.00022669,2]
[322123315,1712816967560,-3719.84092639,0.00022673,2]
[322123316,1712816967581,-154.92253873,0.00022673,2]
[322123317,1712816967602,-947.60613541,0.00022673,2]
[322123318,1712816967623,-2617.32975732,0.00022674,2]
[322123319,1712816967644,-154.92253873,0.00022674,2]
[322123320,1712816967665,-300.0,0.00022674,2]
[322123321,1712816967686,-300.0,0.00022674,2]
[322123322,1712816967708,-1617.89538684,0.00022675,2]
[322123323,1712816967729,-9423.90788758,0.00022675,2]
[322123324,1712816967750,-193.09908054,0.00022675,2]
[322123325,1712816967772,-1494.03785259,0.00022675,2]
[322123326,1712816967793,-1486.45349515,0.00022676,2]
[322123327,1712816967938,-571.00126167,0.00022676,2]
[322123328,1712816967959,-181.13273271,0.00022676,2]
[322123329,1712816967979,-154.92253873,0.00022676,2]
[322123330,1712816967999,-156.63566121,0.00022677,2]
[322123331,1712816968020,-2937.03373596,0.00022677,2]
[322123332,1712816968045,-361.03908347,0.00022677,2]
[322123333,1712816968065,-3737.50409594,0.00022678,2]
[322123334,1712816968085,-156.89474755,0.00022692,2]
[322123335,1712816968105,-263.74952097,0.00022692,2]
[322123336,1712816968124,-1312.17904408,0.00022692,2]
[322123337,1712816968151,-478.4133243,0.00022692,2]
[322123338,1712816968170,-179.83138375,0.00022692,2]
[322123339,1712816968190,-304.95310847,0.00022692,2]
[322123340,1712816968213,-233.62114203,0.00022692,2]
[322123341,1712816968260,-237.01174804,0.00022692,2]
[322123342,1712816968280,-3375.41405612,0.00022692,2]
[322123343,1712816968299,-211.94080866,0.00022692,2]
[322123344,1712816968318,-200.0,0.00022692,2]
[322123345,1712816968337,-155.430717,0.00022692,2]
[322123346,1712816968356,-2829.64111568,0.00022692,2]
[322123347,1712816968376,-188.41737304,0.00022692,2]
[322123348,1712816968396,-490.67957045,0.00022692,2]
[322123349,1712816968416,-283.73543725,0.00022692,2]
[322123350,1712816968437,-331.24769777,0.00022692,2]
[322123351,1712816968456,-219.06785182,0.00022692,2]
[322123352,1712816968476,-333.48374639,0.00022692,2]
[322123353,1712816968497,-438.00655096,0.00022692,2]
[322123354,1712816968517,-3919.93115084,0.00022693,2]
[322123355,1712816968538,-14163.77383017,0.00022694,2]
[322123356,1712817027516,698.86004908,0.00020594,2]
[322123392,1712817032789,-2221.52799117,0.00022475,2]
[322123408,1712817038785,-413.26180723,0.00022475,2]
[322123409,1712817038849,-1989.07529933,0.00022475,2]
[322123453,1712817039312,-8349.92982892,0.00022475,2]
[322123455,1712817039322,-644.51350878,0.00022575,2]
[322123457,1712817039336,-200.0,0.00022575,2]
[322123458,1712817039346,-3760.1076767,0.00022692,2]
[322123461,1712817039355,-790.33085223,0.00022693,2]
[322123463,1712817039365,-300.0,0.00022693,2]
[322123465,1712817039374,-300.0,0.00022693,2]
[322123467,1712817039383,-2039.57311006,0.00022694,2]
[322123530,1712817044115,-8696.65305977,0.00022694,2]
[322123531,1712817044125,-1039.6600276,0.00022792,2]
[322123532,1712817044134,-176.186956,0.0002288,2]
[322123533,1712817044143,-638.27448348,0.00024427,2]
[322123534,1712817044152,-420.0,0.00024642,2]
[322123535,1712817044161,-280.0,0.00024658,2]
[322123536,1712817044171,-173.86363427,0.00024714,2]
[322123537,1712817044183,-177.645257,0.00024823,2]
[322123538,1712817044192,-420.0,0.00024962,2]
[322123539,1712817044201,-923.76277952,0.00025,2]
[322123540,1712817044210,-173.86363421,0.00025283,2]
[322123541,1712817044221,-698.86004908,0.00025594,2]
[322123542,1712817044230,-620.91372417,0.00025649,2]
[322123543,1712817044239,-173.86363421,0.00025851,2]
[322123544,1712817044248,-155.52243638,0.00026242,2]
[322123545,1712817044259,-173.86363421,0.0002642,2]
[322123546,1712817044268,-587.0,0.00026759,2]
[322123547,1712817044277,-620.04568621,0.00026931,2]
[322123548,1712817044286,-571.00126167,0.00026986,2]
[322123549,1712817044295,-1494.03785259,0.00026986,2]
[322123550,1712817044305,-752.22182841,0.00026986,2]
[322123551,1712817044314,-563.04815704,0.00026987,2]
[322123552,1712817044324,-156.63566121,0.00026987,2]
[322123553,1712817044334,-173.86363421,0.00026988,2]
[322123554,1712817044343,-138.849736,0.00026998,2]
[322123555,1712817044356,-9285.05815158,0.00026998,2]
[322123556,1712817044366,-1617.89538684,0.00026999,2]
[322123557,1712817044375,-154.90705577,0.00027,2]
[322123558,1712817044385,-229.217124,0.00027397,2]
[322123559,1712817044394,-254.231589,0.00027397,2]
[322123560,1712817044403,-166.666666,0.00027397,2]
[322123561,1712817044412,-1620.29007741,0.000274,2]
[322123562,1712817044421,-587.0,0.00027458,2]
[322123563,1712817044431,-215.82383049,0.00027499,2]
[322123564,1712817044440,-8052.1344326,0.000275,2]
[322123565,1712817044449,-2300.37815036,0.000275,4]
[322123566,1712817044458,-157.26628195,0.000275,2]
[322123567,1712817044468,-799.7051208,0.00027556,17]
[322123568,1712817044477,-173.86363421,0.00027557,2]
[322123569,1712817044486,-1620.2900774,0.00028025,2]
[322123570,1712817044495,-166.666666,0.00028038,2]
[322123571,1712817044504,-173.86363421,0.00028125,2]
[322123572,1712817044513,-1620.2900774,0.0002865,2]
[322123573,1712817044523,-505.64234481,0.00028669,2]
[322123574,1712817044531,-339.05167979,0.00028669,2]
[322123575,1712817044541,-2000.0,0.0002867,2]
[322123576,1712817044550,-166.666666,0.00028679,2]
[322123577,1712817044559,-173.86363421,0.00028694,2]
[322123578,1712817044568,-204.22257329,0.00028765,2]
[322123579,1712817044577,-157.55897602,0.00028766,2]
[322123580,1712817044588,-303.42336337,0.00028766,2]
[322123581,1712817044597,-618.32284686,0.00028766,2]
[322123582,1712817044606,-155.27678543,0.00028766,2]
[322123583,1712817044616,-2779.89126843,0.00028766,2]
[322123584,1712817044625,-310.94557712,0.00028766,2]
[322123585,1712817044634,-188.93309274,0.00028766,2]
[322123586,1712817044643,-196.73315461,0.00028766,2]
[322123587,1712817044652,-225.41827227,0.00028766,2]
[322123588,1712817044662,-205.64170032,0.00028766,2]
[322123589,1712817044671,-800.55666806,0.00028766,2]
[322123590,1712817044681,-246.01499465,0.00028766,2]
[322123591,1712817044690,-154.92253873,0.00028766,2]
[322123592,1712817044700,-154.92253873,0.00028766,2]
[322123593,1712817044709,-1046.64278364,0.00028766,2]
[322123594,1712817044718,-330.06476013,0.00028766,2]
[322123595,1712817044728,-381.27926662,0.00028766,2]
[322123596,1712817044737,-430.87671529,0.00028766,2]
[322123597,1712817044746,-1113.50494987,0.00028767,2]
[322123617,1712817645031,165.57639,0.00022104,2]
[322123622,1712817706498,19143.95477518,0.00022104,2]
[322123623,1712817716896,925.31693807,0.00021731,2]
[322123624,1712817720028,11956.6767672,0.00022104,2]
[322123625,1712817722487,19143.95477518,0.00022104,2]
[322123627,1712817740502,16185.04580267,0.00022104,2]
[322123628,1712817762271,250.0,0.00021676,2]
[322123629,1712817786170,786.21997018,0.00021505,2]
[322123630,1712817954729,950.425191,0.00020492,2]
[322123631,1712818001196,1945.5224297,0.00020488,2]
[322123633,1712818137549,177.645257,0.00020203,2]
[322123634,1712818173160,-887.19168702,0.0002137,2]
[322123635,1712818173182,-435.93996497,0.0002137,2]
[322123636,1712818173203,-687.50427823,0.00021371,2]
[322123637,1712818173224,-518.5419639,0.00021371,2]
[322123638,1712818173244,-211.50234221,0.00021371,2]
[322123639,1712818173263,-208.78267116,0.00021372,2]
[322123640,1712818173284,-548.9788122,0.00021372,2]
[322123641,1712818173305,-470.227429,0.00021372,2]
[322123642,1712818173326,-563.9493202,0.00021373,2]
[322123643,1712818173500,-22755.98720092,0.00021466,2]
[322123644,1712818173523,-300.0,0.00021467,2]
[322123645,1712818173544,-154.92253873,0.00021468,2]
[322123646,1712818173566,-1494.03785259,0.00021468,2]
[322123647,1712818173587,-300.0,0.00021468,2]
[322123648,1712818173607,-1030.46255383,0.00021468,2]
[322123649,1712818173626,-193.09908054,0.00021469,2]
[322123650,1712818173645,-181.13273271,0.00021469,2]
[322123651,1712818173666,-2937.03373596,0.00021469,2]
[322123652,1712818173686,-364.77396862,0.0002147,2]
[322123653,1712818173706,-626.85152368,0.0002147,2]
[322123654,1712818173725,-3335.56532478,0.00021491,2]
[322123655,1712818173745,-995.03940236,0.00021503,2]
[322123656,1712818173764,-18370.51169239,0.00021505,2]
[322123657,1712818204367,-193.09908054,0.00021369,2]
[322123658,1712818204395,-364.77396862,0.00021369,2]
[322123659,1712818204421,-5743.26833743,0.00021505,2]
[322123660,1712818204446,-200.0,0.00021515,2]
[322123661,1712818204471,-158.59081426,0.00022417,2]
[322123662,1712818204499,-283.48016999,0.00022418,2]
[322123663,1712818204524,-1739.05746558,0.00022775,2]
[322123664,1712818204549,-300.0,0.00022874,2]
[322123665,1712818204577,-300.0,0.00022874,2]
[322123666,1712818204602,-193.61643171,0.00022875,2]
[322123667,1712818204626,-5786.1213342,0.00022875,2]
[322123668,1712818204651,-309.84507746,0.00022875,2]
[322123669,1712818204676,-5569.16345896,0.00022875,2]
[322123670,1712818204701,-1931.50577547,0.00022875,2]
[322123671,1712818204725,-203.707879,0.00022876,2]
[322123672,1712818204751,-1308.15892502,0.00022876,2]
[322123673,1712818204776,-1739.05746556,0.00024249,2]
[322123674,1712818204801,-159.34559843,0.00024545,2]
[322123675,1712818204829,-200.0,0.00024658,2]
[322123676,1712818204854,-380.0,0.00024658,2]
[322123677,1712818204879,-420.0,0.00024834,2]
[322123678,1712818205007,-159.34559828,0.00024902,2]
[322123679,1712818205039,-420.0,0.00025162,2]
[322123680,1712818205070,-159.34559828,0.00025259,2]
[322123681,1712818205096,-159.34559828,0.00025616,2]
[322123682,1712818205124,-1494.03785259,0.0002569,2]
[322123683,1712818205150,-207.41708683,0.00025691,2]
[322123684,1712818205176,-156.52150472,0.00025691,2]
[322123685,1712818205203,-687.50427823,0.00025691,2]
[322123686,1712818205229,-154.92253873,0.00025691,2]
[322123687,1712818205254,-435.93996497,0.00025691,2]
[322123688,1712818205280,-887.19168702,0.00025691,2]
[322123689,1712818205306,-326.58964384,0.00025691,2]
[322123690,1712818205330,-548.9788122,0.00025691,2]
[322123691,1712818205356,-154.92253873,0.00025691,2]
[322123692,1712818205381,-518.5419639,0.00025691,2]
[322123693,1712818205406,-22755.98720092,0.00025691,2]
[322123694,1712818205431,-2440.23611511,0.00025691,2]
[322123695,1712818205455,-341.05239012,0.00025691,2]
[322123696,1712818205483,-470.227429,0.00025691,2]
[322123697,1712818205508,-200.34963443,0.00025691,2]
[322123698,1712818205535,-1087.73357907,0.00025692,2]
[322123699,1712818205562,-360.85132278,0.00025692,2]
[322123700,1712818205588,-500.0,0.00025692,2]
[322123701,1712818205612,-421.38143282,0.00025692,2]
[322123702,1712818205638,-569.73298964,0.00025692,2]
[322123703,1712818205664,-500.0,0.00025692,2]
[322123704,1712818205690,-500.0,0.00025692,2]
[322123705,1712818205716,-500.0,0.00025692,2]
[322123706,1712818205745,-500.0,0.00025692,2]
[322123707,1712818205770,-500.0,0.00025692,2]
[322123708,1712818205795,-313.00421868,0.00025692,2]
[322123709,1712818205822,-500.0,0.00025692,2]
[322123710,1712818205847,-226.19249625,0.00025692,2]
[322123711,1712818205871,-243.70580328,0.00025692,2]
[322123712,1712818205897,-48292.23634338,0.00025693,2]
[322123713,1712818205922,-1739.05746556,0.00025723,2]
[322123714,1712818205946,-923.76277952,0.0002589,2]
[322123715,1712818205972,-159.34559828,0.00025973,2]
[322123716,1712818205998,-877.91407102,0.00026025,2]
[322123717,1712818206028,-159.34559828,0.0002633,2]
[322123718,1712818206054,-159.34559828,0.00026687,2]
[322123719,1712818206083,-587.0,0.00026963,2]
[322123720,1712818206110,-165.5763908,0.00026979,2]
[322123721,1712818206135,-154.92253873,0.00027,2]
[322123722,1712818206160,-159.34559828,0.00027044,2]
[322123723,1712818206185,-1739.05746556,0.00027196,2]
[322123724,1712818206210,-1626.05586294,0.00027297,2]
[322123725,1712818206234,-53378.91694265,0.00027322,2]
[322123726,1712818206261,-151.0,0.00027322,2]
[322123727,1712818206287,-151.0,0.00027322,2]
[322123728,1712818206314,-151.0,0.00027322,2]
[322123729,1712818206339,-151.0,0.00027322,2]
[322123730,1712818206365,-160.352455,0.00027322,2]
[322123731,1712818206390,-160.352455,0.00027322,2]
[322123732,1712818206415,-1007.898395,0.00027322,2]
[322123733,1712818206441,-1007.898395,0.00027322,2]
[322123734,1712818206466,-151.0,0.00027322,2]
[322123735,1712818206496,-1384.300446,0.00027322,2]
[322123736,1712818206521,-1384.300446,0.00027322,2]
[322123737,1712818206551,-151.0,0.00027322,2]
[322123738,1712818206582,-193.829991,0.00027322,2]
[322123739,1712818206607,-193.829991,0.00027322,2]
[322123740,1712818206632,-151.0,0.00027322,2]
[322123741,1712818206656,-151.0,0.00027322,2]
[322123742,1712818206681,-265.487526,0.00027322,2]
[322123743,1712818206707,-265.487526,0.00027322,2]
[322123744,1712818206843,-151.0,0.00027322,2]
[322123745,1712818206871,-274.841635,0.00027322,2]
[322123746,1712818206896,-274.841635,0.00027322,2]
[322123747,1712818206922,-500.0,0.00027397,2]
[322123748,1712818206947,-500.0,0.00027397,2]
[322123749,1712818206973,-500.0,0.00027397,2]
[322123750,1712818207000,-374.04762265,0.00027397,2]
[322123751,1712818207026,-500.0,0.00027397,2]
[322123752,1712818207051,-500.0,0.00027397,2]
[322123753,1712818207080,-500.0,0.00027397,2]
[322123754,1712818207105,-500.0,0.00027397,2]
[322123755,1712818207129,-500.0,0.00027397,2]
[322123756,1712818207155,-500.0,0.00027397,2]
[322123757,1712818207180,-500.0,0.00027397,2]
[322123758,1712818207205,-500.0,0.00027397,2]
[322123759,1712818207229,-500.0,0.00027397,2]
[322123760,1712818207254,-500.0,0.00027397,2]
[322123761,1712818207279,-500.0,0.00027397,2]
[322123762,1712818207305,-500.0,0.00027397,2]
[322123763,1712818207333,-500.0,0.00027397,2]
[322123764,1712818207358,-336.616031,0.00027397,2]
[322123765,1712818207383,-151.0,0.00027397,2]
[322123766,1712818207408,-166.666666,0.00027397,2]
[322123767,1712818207434,-159.34559828,0.00027401,2]
[322123768,1712818207458,-151.0,0.00027591,2]
[322123769,1712818207484,-274.841635,0.00027591,2]
[322123770,1712818207508,-274.841635,0.00027591,2]
[322123771,1712818207532,-587.0,0.00027678,2]
[322123772,1712818207557,-159.34559828,0.00027758,2]
[322123773,1712818217273,-364.77396862,0.00028037,2]
[322123774,1712818217309,-166.666666,0.00028038,2]
[322123775,1712818217336,-159.34559828,0.00028115,2]
[322123776,1712818217360,-159.34559828,0.00028472,2]
[322123777,1712818217385,-151.0,0.00028472,2]
[322123778,1712818217411,-265.487526,0.00028472,2]
[322123779,1712818217529,-265.487526,0.00028472,2]
[322123780,1712818217554,-151.0,0.00028667,2]
[322123781,1712818217581,-151.0,0.00028667,2]
[322123782,1712818217605,-160.352455,0.00028667,2]
[322123783,1712818217629,-160.352455,0.00028667,2]
[322123784,1712818217655,-1384.300446,0.00028667,2]
[322123785,1712818217679,-1384.300446,0.00028667,2]
[322123786,1712818217705,-151.0,0.00028667,2]
[322123787,1712818217729,-151.0,0.00028667,2]
[322123788,1712818217753,-193.829991,0.00028667,2]
[322123789,1712818217778,-193.829991,0.00028667,2]
[322123790,1712818217802,-407.88528427,0.00028667,2]
[322123791,1712818217828,-185.68184053,0.00028667,2]
[322123792,1712818217853,-467.69831707,0.00028667,2]
[322123793,1712818217878,-225.5768185,0.00028668,2]
[322123794,1712818217904,-151.0,0.0002867,2]
[322123795,1712818217929,-160.226649,0.0002867,2]
[322123796,1712818217954,-1739.05746556,0.0002867,2]
[322123797,1712818217979,-1007.898395,0.0002867,2]
[322123798,1712818218003,-1007.898395,0.0002867,2]
[322123799,1712818218027,-151.0,0.0002867,2]
[322123800,1712818218051,-220.775652,0.00028679,2]
[322123801,1712818218075,-151.0,0.00028679,2]
[322123802,1712818218099,-151.0,0.00028679,2]
[322123803,1712818218124,-151.0,0.00028679,2]
[322123804,1712818218148,-166.666666,0.00028679,2]
[322123805,1712818218171,-302.0,0.0002876,2]
[322123806,1712818218195,-151.0,0.0002876,2]
[322123807,1712818218220,-151.0,0.0002876,2]
[322123808,1712818218245,-151.0,0.0002876,2]
[322123809,1712818218272,-154.98450155,0.00028764,2]
[322123810,1712818218296,-647.59911435,0.00028766,2]
[322123811,1712818218322,-564.49254882,0.00028766,2]
[322123812,1712818218347,-301.57264599,0.00028766,2]
[322123813,1712818218372,-156.89662468,0.00028766,2]
[322123814,1712818218398,-801.88767215,0.00028766,17]
[322123815,1712818218422,-623.35659155,0.00028766,2]
[322123816,1712818218446,-155.46639472,0.00028766,2]
[322123817,1712818218471,-263.43758151,0.00028766,2]
[322123818,1712818218499,-154.98450155,0.00028766,2]
[322123819,1712818218524,-524.73312661,0.00028766,2]
[322123820,1712818218550,-272.98929388,0.00028766,2]
[322123821,1712818218577,-3836.99080508,0.00028766,2]
[322123822,1712818218602,-1485.70436416,0.00028766,2]
[322123823,1712818218626,-473.2366857,0.00028766,2]
[322123824,1712818218653,-151.0,0.00028766,2]
[322123825,1712818218678,-373.403669,0.00028766,2]
[322123826,1712818218703,-373.403669,0.00028766,2]
[322123827,1712818218730,-1199.911322,0.00028766,2]
[322123828,1712818218755,-1199.911322,0.00028766,2]
[322123829,1712818218779,-151.0,0.00028766,2]
[322123830,1712818218805,-151.0,0.00028766,2]
[322123831,1712818218830,-151.0,0.00028766,2]
[322123832,1712818218857,-151.0,0.00028766,2]
[322123833,1712818218882,-151.0,0.00028766,2]
[322123834,1712818218908,-151.0,0.00028766,2]
[322123835,1712818218934,-151.0,0.00028766,2]
[322123836,1712818218959,-160.352455,0.00028766,2]
[322123837,1712818218985,-160.352455,0.00028766,2]
[322123838,1712818219011,-1007.898395,0.00028766,2]
[322123839,1712818219035,-1007.898395,0.00028766,2]
[322123840,1712818219061,-151.0,0.00028766,2]
[322123841,1712818219088,-1384.300446,0.00028766,2]
[322123842,1712818219113,-1384.300446,0.00028766,2]
[322123843,1712818219137,-298.0,0.00028766,2]
[322123844,1712818219244,-193.829991,0.00028766,2]
[322123845,1712818219270,-193.829991,0.00028766,2]
[322123846,1712818219294,-151.0,0.00028766,2]
[322123847,1712818219320,-151.0,0.00028766,2]
[322123848,1712818219344,-265.487526,0.00028766,2]
[322123849,1712818219367,-265.487526,0.00028766,2]
[322123850,1712818219392,-265.487526,0.00028766,2]
[322123851,1712818219416,-265.487526,0.00028766,2]
[322123852,1712818219440,-151.0,0.00028766,2]
[322123853,1712818219465,-169.842398,0.00028766,2]
[322123854,1712818219491,-274.841635,0.00028766,2]
[322123855,1712818219516,-274.841635,0.00028766,2]
[322123856,1712818219544,-274.841635,0.00028766,2]
[322123857,1712818219573,-274.841635,0.00028766,2]
[322123858,1712818219597,-740.52248513,0.00028767,2]
[322123859,1712818219622,-754.34968747,0.00028767,2]
[322123860,1712818219646,-220.25791032,0.00028767,2]
[322123861,1712818219670,-692.94659943,0.00028767,2]
[322123862,1712818219695,-10077.73481453,0.00028767,14]
[322123863,1712818219720,-2300.37815036,0.00028767,4]
[322123864,1712818219745,-373.403669,0.00028767,2]
[322123865,1712818219769,-373.403669,0.00028767,2]
[322123866,1712818219795,-373.403669,0.00028767,2]
[322123867,1712818219820,-373.403669,0.00028767,2]
[322123868,1712818219846,-1199.911322,0.00028767,2]
[322123869,1712818219876,-316.10423768,0.00028767,2]
[322123870,1712818219900,-1199.911322,0.00028767,2]
[322123871,1712818219926,-151.0,0.00028767,2]
[322123872,1712818219950,-151.0,0.00028767,2]
[322123873,1712818219974,-151.0,0.00028767,2]
[322123874,1712818220001,-151.0,0.00028767,2]
[322123875,1712818220026,-151.0,0.00028767,2]
[322123876,1712818220069,-151.0,0.00028767,2]
[322123877,1712818220102,-151.0,0.00028767,2]
[322123878,1712818220139,-151.0,0.00028767,2]
[322123879,1712818220176,-151.0,0.00028767,2]
[322123880,1712818220208,-151.0,0.00028767,2]
[322123881,1712818220242,-151.0,0.00028767,2]
[322123882,1712818220277,-261.862931,0.00028767,2]
[322123883,1712818220307,-151.0,0.00028767,2]
[322123884,1712818220344,-151.0,0.00028767,2]
[322123885,1712818220377,-151.300064,0.00028767,2]
[322123886,1712818220412,-151.0,0.00028767,2]
[322123887,1712818220449,-151.0,0.00028767,2]
[322123888,1712818220486,-151.0,0.00028767,2]
[322123889,1712818220515,-151.0,0.00028767,2]
[322123890,1712818220550,-151.0,0.00028767,2]
[322123891,1712818220585,-151.0,0.00028767,2]
[322123892,1712818220612,-247.798841,0.00028767,2]
[322123893,1712818220643,-160.352455,0.00028767,2]
[322123894,1712818220674,-160.352455,0.00028767,2]
[322123895,1712818220707,-160.352455,0.00028767,2]
[322123896,1712818220736,-160.352455,0.00028767,2]
[322123897,1712818220768,-1007.898395,0.00028767,2]
[322123898,1712818220799,-1007.898395,0.00028767,2]
[322123899,1712818220853,-1007.898395,0.00028767,2]
[322123900,1712818220895,-1007.898395,0.00028767,2]
[322123901,1712818220928,-151.0,0.00028767,2]
[322123902,1712818220959,-151.0,0.00028767,2]
[322123903,1712818220990,-1384.300446,0.00028767,2]
[322123904,1712818221021,-1384.300446,0.00028767,2]
[322123905,1712818221052,-1384.300446,0.00028767,2]
[322123906,1712818221084,-1384.300446,0.00028767,2]
[322123907,1712818221257,-193.829991,0.00028767,2]
[322123908,1712818221286,-193.829991,0.00028767,2]
[322123909,1712818221315,-193.829991,0.00028767,2]
[322123910,1712818221347,-193.829991,0.00028767,2]
[322123911,1712818221375,-151.0,0.00028767,2]
[322123912,1712818221402,-151.0,0.00028767,2]
[322123913,1712818221430,-265.487526,0.00028767,2]
[322123914,1712818221456,-265.487526,0.00028767,2]
[322123915,1712818221484,-265.487526,0.00028767,2]
[322123916,1712818221510,-265.487526,0.00028767,2]
[322123917,1712818221538,-274.841635,0.00028767,2]
[322123918,1712818221563,-274.841635,0.00028767,2]
[322123919,1712818221591,-274.841635,0.00028767,2]
[322123920,1712818221616,-274.841635,0.00028767,2]
[322123921,1712818221642,-373.403669,0.00028768,2]
[322123922,1712818221669,-373.403669,0.00028768,2]
[322123923,1712818221695,-1199.911322,0.00028768,2]
[322123924,1712818221720,-1199.911322,0.00028768,2]
[322123925,1712818221745,-124365.51298467,0.0002877,2]
[322123926,1712818223499,377.38651,0.00027397,2]
[322123927,1712818226012,151.0,0.00027322,2]
[322123928,1712818226305,151.0,0.00027591,2]
[322123975,1712818232078,-154.92253873,0.00028035,2]
[322123976,1712818232088,-108.68441327,0.00028036,2]
[322123977,1712818232100,-778.73903267,0.00028036,2]
[322123978,1712818232208,-158.59081426,0.00028765,2]
[322123979,1712818232219,-383.83429013,0.00028765,2]
[322123980,1712818232229,-161.10819807,0.00028765,2]
[322123981,1712818232239,-188.72085679,0.00028765,2]
[322123982,1712818232251,-1284.5294023,0.00028765,2]
[322123983,1712818232263,-20.7875935,0.00028765,2]
[322123984,1712818232273,-151.0,0.00028766,2]
[322123985,1712818232283,-151.0,0.00028766,2]
[322123986,1712818232292,-151.0,0.00028767,2]
[322123987,1712818232302,-151.0,0.00028767,2]
[322123988,1712818232312,-192.65780692,0.00028769,2]
[322123989,1712818232322,-326.58964384,0.00028769,2]
[322123990,1712818232333,-518.5419639,0.00028769,2]
[322123991,1712818232343,-3189.1563604,0.0002877,2]
[322123992,1712818232944,754.34968747,0.000274,2]
[322123993,1712818234798,585.27604734,0.0002667,2]
[322124014,1712818237950,-47811.97521178,0.0002877,2]
[322124015,1712818237959,-373.403669,0.0002877,2]
[322124016,1712818237969,-373.403669,0.0002877,2]
[322124017,1712818237978,-1199.911322,0.0002877,2]
[322124018,1712818237987,-1199.911322,0.0002877,2]
[322124019,1712818237996,-151.0,0.0002877,2]
[322124020,1712818238005,-151.0,0.0002877,2]
[322124021,1712818238015,-151.0,0.0002877,2]
[322124022,1712818238026,-151.0,0.0002877,2]
[322124023,1712818238035,-151.0,0.0002877,2]
[322124024,1712818238044,-151.0,0.0002877,2]
[322124025,1712818238054,-151.0,0.0002877,2]
[322124026,1712818238063,-160.352455,0.0002877,2]
[322124027,1712818238072,-160.352455,0.0002877,2]
[322124028,1712818238081,-1007.898395,0.0002877,2]
[322124029,1712818238092,-1007.898395,0.0002877,2]
[322124030,1712818238103,-153.707074,0.0002877,2]
[322124031,1712818238112,-1384.300446,0.0002877,2]
[322124032,1712818238122,-1384.300446,0.0002877,2]
[322124033,1712818238131,-193.829991,0.0002877,2]
[322124034,1712818238140,-193.829991,0.0002877,2]
[322124035,1712818238149,-151.0,0.0002877,2]
[322124036,1712818238159,-265.487526,0.0002877,2]
[322124037,1712818238168,-265.487526,0.0002877,2]
[322124038,1712818238178,-274.841635,0.0002877,2]
[322124039,1712818238186,-274.841635,0.0002877,2]
[322124040,1712818238196,-151.0,0.0002877,2]
[322124041,1712818238205,-159.34559828,0.00028829,2]
[322124042,1712818238215,-170.49468752,0.0002887,3]
[322124043,1712818238224,-191.39948593,0.00029161,2]
[322124044,1712818238233,-159.34559828,0.00029186,2]
[322124045,1712818238242,-823.0,0.00029273,2]
[322124046,1712818238254,-166.666666,0.00029321,2]
[322124047,1712818238265,-159.34559828,0.00029543,2]
[322124048,1712818238274,-159.34559828,0.000299,2]
[322124049,1712818238284,-166.666666,0.00029962,2]
[322124050,1712818238295,-373.11174098,0.00029999,2]
[322124051,1712818238307,-393.9012656,0.00029999,2]
[322124052,1712818238316,-500.0,0.00029999,2]